Cogmind - Beta 15 @@@ ROGUE MODE // 2025.06.06 @ 02:08:27 Player: Cracklepappy Result: Smashed by cave-in Performance ------------- Evolutions (3) 1500 Regions Visited (10) 2000 Robots Destroyed (298) 1490 Value Destroyed (8362) 8362 Prototype IDs (38) 760 Alien Tech Used (0) 0 Bonus (1586) 1586 TOTAL SCORE: 15698 Bonus ------- High Alert Combat Kills 499 Follower Combat Kills 539 Destroyed Z-Imprinter 1000 Friendly Fire -452 Cogmind --------- Core Integrity 0/700 Matter 300/300 Energy 327/340 System Corruption 5% Temperature Cool (60) Movement Treading (330) Ox2 Location -7/Deep Caves Parts ------- > --- POWER (1) -------- Heavy Antimatter Reactor > --- PROPULSION (2) --- Armored Treads Armored Treads > --- UTILITY (6) ------ Armored Scrap Engine High-capacity Storage Unit Core Analyzer Zionite Light Carapace > --- WEAPON (4) ------- Neutron Cannon RU-N14's Throwing Claymores Hvy. EM Riot Construct/C > --- INVENTORY (20) --- Antimatter Reactor Armored Huge Wheel Makeshift Microdissipator Network Zionite Biocell (600) Zionite Biocell (600) Zionite Biocell (600) High-capacity Matter Pod (200) Zionite Weapon Casing GOLEM Unit Zionite Phaser-S KN-7UR's Autopenetrator Improved EM Pulse Cannon Rocket Launcher Improved Grenade Launcher Plasma Cutter RU-N14's Throwing Claymores (2) CR-A16's Pointy Stick Peak State ------------ > --- POWER ------------ Heavy Antimatter Reactor > --- PROPULSION ------- Armored Treads Armored Treads > --- UTILITY ---------- Armored Scrap Engine High-capacity Storage Unit Core Analyzer Zionite Light Carapace Experimental Thermal Shield > --- WEAPON ----------- RU-N14's Throwing Claymores RU-N14's Throwing Claymores Hvy. EM Riot Construct/C > --- INVENTORY -------- Armored Huge Wheel Makeshift Microdissipator Network Zionite Biocell Zionite Biocell Zionite Biocell High-capacity Matter Pod Zionite Weapon Casing Zionite Light Carapace Zionite Light Carapace GOLEM Unit Zionite Phaser-S KN-7UR's Autopenetrator Improved EM Pulse Cannon Neutron Cannon Rocket Launcher Improved Grenade Launcher Plasma Cutter CR-A16's Pointy Stick [Rating: 86] Favorites ----------- Power Constructs Engine Ion Engine Power Core Constructs Reactor Heavy Antimatter Reactor Propulsion Armored Treads Treads Armored Treads Wheel Armored Wheel Utility Armored Scrap Engine Device Armored Scrap Engine Storage High-capacity Storage Unit Processor Core Analyzer Hackware Hacking Suite Protection Medium Armor Plating Weapon Constructs Energy Gun Constructs Energy Cannon Constructs Ballistic Gun Improved Assault Rifle Ballistic Cannon Bore Cannon Launcher EMP Blaster Special Weapon RU-N14's Throwing Claymores Slashing Weapon Chainsword Special Melee Weapon Datajack Build | -11 -10 -10 -9 -9 -9 -7 -7 -7 -7 -7 ------- Run | Yrd Mat Min Mat Sto Rec Fac Low Low Zio Dee Slots Evolved 6 | . . . 2 . . 4 . . . . Power . | . . . . . . . . . . . Propulsion . | . . . . . . . . . . . Utility 4 | . . . . . . 4 . . . . Weapon 2 | . . . 2 . . . . . . . Parts Attached 140 | 8 12 . 32 26 8 14 6 2 19 13 Power 12 | 1 2 . 3 5 1 . . . . . Engine 11 | 1 2 . 3 5 . . . . . . Core . | . . . . . . . . . . . Reactor 1 | . . . . . 1 . . . . . Propulsion 39 | 2 2 . 12 10 4 4 . . 5 . Treads 35 | 2 2 . 12 10 1 3 . . 5 . Leg . | . . . . . . . . . . . Wheel 4 | . . . . . 3 1 . . . . Hover . | . . . . . . . . . . . Flight . | . . . . . . . . . . . Utility 45 | 3 1 . 7 3 2 10 4 1 6 8 Device 17 | 2 . . 3 1 2 1 3 . 4 1 Storage 8 | 1 1 . 2 . . 3 . . . 1 Processor 3 | . . . . . . 2 . 1 . . Hackware 2 | . . . . . . 2 . . . . Protection 15 | . . . 2 2 . 2 1 . 2 6 Artifact . | . . . . . . . . . . . Weapon 44 | 2 7 . 10 8 1 . 2 1 8 5 Energy Gun 7 | 1 1 . 2 . 1 . . . . 2 Energy Cannon 4 | . 1 . . . . . . . 2 1 Ballistic Gun 17 | 1 3 . 7 6 . . . . . . Ballistic Cannon 1 | . . . . . . . . . . 1 Launcher 4 | . 1 . . . . . 1 1 1 . Special Weapon 8 | . 1 . 1 . . . . . 5 1 Impact Weapon . | . . . . . . . . . . . Slashing Weapon 2 | . . . . 1 . . 1 . . . Piercing Weapon . | . . . . . . . . . . . Special Melee Weapon 1 | . . . . 1 . . . . . . Unidentified Prototypes 16 | . . . 2 2 3 . . . 2 7 Parts Lost 19 | . 2 . 1 1 1 4 2 1 2 5 Power 2 | . 1 . . . . . . . . 1 Propulsion 3 | . 1 . . . . 2 . . . . Utility 8 | . . . . 1 . 2 1 . 1 3 Weapon 6 | . . . 1 . 1 . 1 1 1 1 Highest Loss Streak 2 | . 2 . 1 1 1 1 2 1 1 2 To Critical Strikes . | . . . . . . . . . . . Average Backups 19 | 5 26 30 25 24 13 18 17 16 16 18 Power 1 | . 2 3 2 1 1 1 1 1 1 . Propulsion 3 | 3 9 8 7 6 2 1 1 1 1 1 Utility 7 | . 8 13 9 8 4 8 7 6 6 8 Weapon 5 | 1 5 6 5 6 3 5 5 5 5 7 Tool/Special . | . . . . . . . . . . . Unused Backups 89 | . 14 1 17 8 16 17 1 1 1 13 Power 5 | . 1 . 2 . . 1 . . . 1 Propulsion 23 | . 10 . 5 3 2 2 . . . 1 Utility 34 | . 3 1 7 1 7 4 1 . 1 9 Weapon 25 | . . . 3 4 7 8 . 1 . 2 Tool/Special 2 | . . . . . . 2 . . . . Average Slot Usage (%) 85 | . 85 85 96 99 84 83 82 82 81 83 Engine 7 | . 14 14 11 11 10 7 6 7 2 . Core 1 | . . . . . . . . . 4 6 Treads 16 | . 27 28 21 22 9 5 15 15 15 15 Wheel 3 | . . . . . 12 9 . . . . Device 8 | . . . 2 . 6 14 14 15 14 10 Storage 8 | . 14 14 12 11 4 7 7 7 6 7 Processor 3 | . . . . . . 6 7 7 7 7 Protection 5 | . . . 4 10 4 5 6 7 6 11 Energy Gun 2 | . 6 . 2 . 4 8 3 5 . . Energy Cannon 5 | . 5 14 1 . 3 7 9 . 7 7 Ballistic Gun 12 | . 12 14 39 42 21 . . . . . Ballistic Cannon 2 | . . . . . 4 4 4 6 3 . Special Weapon 2 | . 3 . . . . . . . 6 13 Slashing Weapon 1 | . . . . . 1 . 4 7 2 . Peak Build Rating 86 | 7 11 11 20 26 38 62 63 66 83 86 Average Rating 44 | 6 10 11 16 22 32 56 60 62 68 77 On Entrance 33 | . 7 11 11 20 26 38 62 63 61 73 Naked Turns . | . . . . . . . . . . . Heaviest Build 155 | 13 150 150 155 107 107 74 74 74 93 85 Greatest Support 48 | 40 40 40 40 46 46 48 40 40 40 40 Greatest Overweight (x) 7 | . 7 3 3 2 6 6 1 1 2 2 Average Overweight (x) 1 | . 2 3 2 2 . 2 1 1 1 1 Largest Inventory Capacity 30 | 8 30 30 30 25 25 25 20 20 20 20 Average Capacity 20 | 7 29 30 25 25 13 19 20 20 18 20 Most Carried 30 | 8 30 30 30 25 25 21 20 20 20 20 Average Carried 19 | 5 27 30 25 24 13 18 19 19 17 19 Final Capacity 30 | 8 30 30 25 25 5 20 20 20 20 20 Final Carried 30 | 8 30 30 25 25 5 20 20 20 20 19 Scrap Engine Consumption 194 | . . . . . 46 86 24 8 26 4 Constructs Created 5 | . . . . . 4 1 . . . . Constructs Modified 66 | . . . . . 8 41 8 3 6 . Class Distribution -------------------- 27% | Gunner 22% | Construct 13% | Hauler-Mutant 10% | Scavenger-Tank 6% | Commander-Tank 5% | Scavenger-Gunner 5% | Tank 4% | Commander-Construct 3% | Mutant Dominant Class ---------------- Hauler-Mutant | -10/Materials Hauler-Mutant | -10/Mines Scavenger-Gunner | -9/Materials Scavenger-Tank | -9/Storage Construct | -9/Recycling Construct | -7/Factory Construct | -7/Lower Caves Construct | -7/Lower Caves Gunner | -7/Zion Scavenger-Tank | -7/Deep Caves Resources | -11 -10 -10 -9 -9 -9 -7 -7 -7 -7 -7 ----------- Run | Yrd Mat Min Mat Sto Rec Fac Low Low Zio Dee Matter Collected 8521 | 290 744 36 1558 1199 589 746 135 95 2745 384 Remotely 108 | 108 . . . . . . . . . . Salvage Created 13499 | 155 871 177 1836 1815 849 3304 849 440 2702 501 Parts 728 | 13 42 6 118 111 34 168 31 11 179 15 Haulers Intercepted 16 | . 1 . 4 6 . 5 . . . . Recyclers Shooed 13 | . 3 1 3 2 3 1 . . . . Parts Field Recycled . | . . . . . . . . . . . Retrieved Matter . | . . . . . . . . . . . Parts Self-Destructed 22 | . . . . . . . 1 21 . . Prevented 2 | . . . . . . . 2 . . . Kills | -11 -10 -10 -9 -9 -9 -7 -7 -7 -7 -7 ------- Run | Yrd Mat Min Mat Sto Rec Fac Low Low Zio Dee Combat Hostiles Destroyed 163 | . 18 2 28 23 6 50 11 6 12 7 Guns 84 | . 13 . 28 23 6 14 . . . . Cannons 51 | . 3 2 . . . 30 3 3 9 1 AOE 11 | . 2 . . . . 1 1 3 1 3 Classes Destroyed 25 | 2 7 . 3 . 2 3 1 . 4 3 Worker 8 | . 1 . 2 2 . 3 . . . . Builder 4 | . 1 . 1 2 . . . . . . Tunneler 5 | 5 . . . . . . . . . . Hauler 16 | . 1 . 4 6 . 5 . . . . Recycler 27 | 1 2 1 5 4 6 8 . . . . Mechanic 1 | . . . . . . 1 . . . . Operator 5 | . 1 . 2 1 . 1 . . . . Watcher 7 | . . . 4 2 . 1 . . . . Swarmer 21 | . 3 . 6 1 . 10 . 1 . . Grunt 67 | . 14 2 13 10 . 21 3 4 . . Brawler 2 | . . . . . . 1 1 . . . Duelist 4 | . . . 2 1 . 1 . . . . Sentry 29 | . . . 7 11 3 7 . 1 . . Programmer 10 | . . . . . . 10 . . . . Enhanced Grunt 1 | . . . . . . . . . . 1 Subdweller 1 | . 1 . . . . . . . . . Explorer 1 | . . . . . . . . . 1 . Scientist 2 | . . . . . 2 . . . . . Scrapper 2 | . . . . . 2 . . . . . Zionite 69 | . . . . . . . . . 69 . Z-Light 2 | . . . . . . . . . . 2 Tinkerer 6 | . . . . . . . . . 6 . Assembled 1 | . . . . . . . . . . 1 Golem 3 | . . . . . . . . . . 3 Surgeon 1 | . . . . . . . . . 1 . Thug 6 | . . . . . . . 5 . 1 . Savage 2 | . . . . . . . 2 . . . Butcher 3 | . . . . . . . 1 . 2 . Marauder 2 | . . . . . . . . . 2 . Mutant 7 | . . . . . . . 1 . 6 . Best Kill Streak 7 | 2 3 3 5 4 5 7 6 4 6 2 Combat Bots Only 6 | . 3 2 4 3 2 6 6 4 2 2 Max Kills in Single Turn 2 | 1 1 1 2 2 2 2 2 2 2 2 Gunslinging 1 | . . . 1 1 . . . . . . Exploded 2 | . 1 . . . . 1 1 2 1 2 Melee . | . . . . . . . . . . . Uniques/NPCs Destroyed 2 | . . . . . 1 . . . . 1 KN-7UR (-9/Recycling) Z-Imprinter (-7/Deep Caves) Combat | -11 -10 -10 -9 -9 -9 -7 -7 -7 -7 -7 -------- Run | Yrd Mat Min Mat Sto Rec Fac Low Low Zio Dee Hostile Shots Fired 998 | . 92 13 112 73 72 308 39 60 201 28 Missed 330 | . 21 1 25 19 2 127 13 22 98 2 Hits 668 | . 71 12 87 54 70 181 26 38 103 26 Melee 8 | . . . 3 1 . . . . 3 1 Projectile 660 | . 71 12 84 53 70 181 26 38 100 25 AOE 5 | . . . . . . . . . 5 . Critical Strikes 17 | . 1 . 3 . 3 7 . . 3 . Damage Taken 10215 | . 903 156 1123 766 984 2121 461 410 1916 1375 Core 1264 | . 159 28 150 57 147 166 37 55 243 222 Absorbed by Shields . | . . . . . . . . . . . Redirected to Shielding 200 | . . . 9 . . . . . . 191 Ignored by Resistances 262 | . . . . . . 142 . . 120 . Regen/Repaired (Parts) 2499 | . 216 . 182 305 . 929 334 128 405 . Core Remaining (%) 45 | 100 . 25 . . 11 . . . . . Volleys Fired 2048 | 11 74 12 90 73 39 155 26 27 1515 26 Largest 4 | 2 2 2 4 4 4 3 1 1 2 2 Hottest 161 | 60 100 80 158 100 92 161 76 70 120 90 Shots Fired 2814 | 22 134 24 332 289 138 277 26 27 1516 29 Gun 996 | 22 114 12 318 288 132 99 . . 6 5 Cannon 1675 | . 11 12 5 . 6 178 17 22 1408 16 Launcher 116 | . 2 . . . . . 9 5 100 . Special 27 | . 7 . 9 1 . . . . 2 8 Kinetic 2149 | 11 71 12 303 288 138 81 2 22 1219 2 Thermal 347 | 11 61 12 29 1 . 125 . . 107 1 Explosive 16 | . 2 . . . . . . 5 1 8 Electromagnetic 295 | . . . . . . 71 24 . 187 13 Phasic 5 | . . . . . . . . . . 5 Robot Hit Streak 28 | 5 11 5 18 24 16 28 9 12 16 18 Robot Miss Streak 7 | 2 4 2 4 3 2 7 5 3 4 2 Penetration Max . | . . . . . . . . . . . Secondary Targets 13 | . 2 . 7 4 . . . . . . Max Gunslinging Chain 1 | . 1 . 1 1 . . . . . . Shots Hit Robots 1047 | 15 91 17 187 178 102 212 19 18 196 12 Core Hits 530 | 8 42 7 73 62 33 167 23 10 94 11 Critical Kills . | . . . . . . . . . . . Critical Parts Destroyed 4 | . 1 . 1 1 . 1 . . . . Critical Strikes 4 | . 1 . 1 1 . 1 . . . . Destroy 4 | . 1 . 1 1 . 1 . . . . Melee Attacks 16 | . . . . 8 1 . 6 . 1 . Impact . | . . . . . . . . . . . Slashing 14 | . . . . 6 1 . 6 . 1 . Piercing . | . . . . . . . . . . . Sneak Attacks 3 | . . . . 2 1 . . . . . Combat Hostiles . | . . . . . . . . . . . Follow-up Attacks . | . . . . . . . . . . . Damage Inflicted 27475 | 144 1159 253 2758 2757 1533 6027 1218 1314 9314 998 Guns 9964 | 144 844 119 2699 2744 1326 1825 . . 263 . Cannons 15244 | . 173 124 34 . 97 4148 764 998 8510 396 Explosions 1924 | . 114 . . . . 54 454 316 541 445 Melee 63 | . . . . . 63 . . . . . Ramming 123 | . 28 10 25 13 47 . . . . . Kinetic 15570 | 58 531 119 2570 2744 1423 1216 . 998 5911 . Thermal 4279 | 86 486 124 163 . . 2594 90 . 736 . Explosive 1006 | . 114 . . . . . . 316 131 445 Electromagnetic 6277 | . . . . . . 2217 1128 . 2536 396 Impact . | . . . . . . . . . . . Slashing 220 | . . . . . 63 . . . . 157 Piercing . | . . . . . . . . . . . Highest Corruption 8 | . . . . . . 8 8 . . . Average Corruption 4 | . . . . . . 4 5 . . . Corruption Purged 8 | . . . . . . . 8 . . . Corruption Blocked . | . . . . . . . . . . . Effects 58 | . . . . . . 55 3 . . . Message Errors 10 | . . . . . . 10 . . . . Matter Fused 15 | . . . . . . 14 1 . . . Heat Flow Errors 7 | . . . . . . 7 . . . . Energy Discharges 9 | . . . . . . 8 1 . . . Parts Fused 1 | . . . . . . 1 . . . . Data Loss (minor) 7 | . . . . . . 6 1 . . . Data Loss (major) 4 | . . . . . . 4 . . . . Alerts 3 | . . . . . . 3 . . . . Weapon Failures 2 | . . . . . . 2 . . . . Overload Shots . | . . . . . . . . . . . Overflow Damage 898 | . . . . . 38 41 . 131 658 30 Projectiles 802 | . . . . . . 41 . 130 631 . Explosions 58 | . . . . . . . . 1 27 30 Melee 38 | . . . . . 38 . . . . . Knockbacks 31 | . 1 . . 2 1 9 . 1 17 . Impact 3 | . 1 . . 2 . . . . . . Kinetic 28 | . . . . . 1 9 . 1 17 . Secondary . | . . . . . . . . . . . Self-Inflicted Damage 131 | . 44 . . . 7 45 15 15 5 . Shots 6 | . 2 . . . . 1 1 1 1 . Rammed 21 | . 4 3 4 3 7 . . . . . Targets Rammed 22 | . 5 3 4 3 7 . . . . . Kicked . | . . . . . . . . . . . Crushed 1 | . 1 . . . . . . . . . Highest Temperature 323 | 40 186 243 218 189 323 246 216 226 228 83 Average Temperature 59 | 23 37 112 57 60 104 50 80 79 40 29 Received Heat Transfer 2673 | . 336 87 330 243 597 450 99 156 237 138 Effects 1 | . . . . . . . . 1 . . Energy Bleed 1 | . . . . . . . . 1 . . Siege Activations . | . . . . . . . . . . . Martial Activations . | . . . . . . . . . . . Shielding Activations . | . . . . . . . . . . . Robots Disrupted . | . . . . . . . . . . . Combat Hostiles . | . . . . . . . . . . . Robots Corrupted 19 | . . . . . . 5 7 . 4 3 Combat Hostiles 14 | . . . . . . 4 7 . . 3 Parts Fried 39 | . . . . . . 15 10 . 14 . Impact Corruptions 1 | . . . . . 1 . . . . . Robots Melted 4 | . . . . . . 1 . . 3 . Combat Hostiles 3 | . . . . . . 1 . . 2 . Parts Melted 31 | . 1 . . . 1 13 . 2 14 . Heat Transferred 8115 | 200 1070 259 407 . . 4774 50 . 1355 . Parts Sabotaged . | . . . . . . . . . . . Parts Stolen . | . . . . . . . . . . . Parts Stripped . | . . . . . . . . . . . Power Chain Reactions 7 | . . . . . . 1 1 . 5 . Alert | -11 -10 -10 -9 -9 -9 -7 -7 -7 -7 -7 ------- Run | Yrd Mat Min Mat Sto Rec Fac Low Low Zio Dee Maximum Alert Level 3 | . . . 2 1 1 3 . . . . Low Security (%) 75 | 100 100 100 72 83 90 3 . . . . Level 1 13 | . . . 12 16 9 42 . . . . Level 2 7 | . . . 14 . . 36 . . . . Level 3 2 | . . . . . . 17 . . . . Level 4 . | . . . . . . . . . . . Level 5 . | . . . . . . . . . . . High Security . | . . . . . . . . . . . Max Security . | . . . . . . . . . . . Peak Influence 985 | 10 145 96 493 289 217 985 . . . . Initial 491 | . . 56 . 206 17 491 . . . . Average 127 | 1 22 6 167 121 26 468 . . . . Influence Increases 5319 | 30 587 55 1014 900 409 2092 97 135 . . Destroy 0b10 Robot/C 2840 | . 340 40 620 460 100 1080 80 120 . . Destroy 0b10 Robot/NC 380 | 30 30 5 90 85 30 105 . 5 . . Destroy Leader 748 | . 82 10 196 166 . 274 10 10 . . Allied During Kill 122 | . . . 7 . 50 58 7 . . . Trap Triggered on 0b10 10 | . . . . 10 . . . . . . Successful Hack 173 | . 17 . 13 47 16 80 . . . . Select Force Hacks 270 | . 60 . . . 210 . . . . . Disable Machine 135 | . 15 . 45 45 . 30 . . . . Destroy Structure 61 | . 13 . 13 12 3 20 . . . . Advance Influence 400 | . . . . . . 400 . . . . Lose Combat Pursuer 180 | . 30 . 30 75 . 45 . . . . Influence Decreases 5319 | 30 442 200 524 1344 238 1333 1073 91 44 . Entered New Map 934 | . . 89 . 284 29 126 362 . 44 . Time Decay 3559 | 30 430 111 490 750 209 767 691 81 . . Lost Part 92 | . 12 . 10 . . 40 20 10 . . Lost Ally 134 | . . . 24 10 . 100 . . . . Purge Threat 600 | . . . . 300 . 300 . . . . Squads Dispatched 28 | . 5 . 5 2 . 16 . . . . Investigation 8 | . 3 . 2 . . 3 . . . . Extermination 7 | . . . . . . 7 . . . . Reinforcement 10 | . 2 . 3 2 . 3 . . . . Assault . | . . . . . . . . . . . Garrison 3 | . . . . . . 3 . . . . Intercept . | . . . . . . . . . . . Searches Triggered . | . . . . . . . . . . . Construction Impeded 1 | . . . . . . 1 . . . . Haulers Reinforced 2 | . . . . . . 2 . . . . Active Scanning Responses . | . . . . . . . . . . . Cargo Convoy Interrupts . | . . . . . . . . . . . Stealth | -11 -10 -10 -9 -9 -9 -7 -7 -7 -7 -7 --------- Run | Yrd Mat Min Mat Sto Rec Fac Low Low Zio Dee Distress Signals 12 | . 4 . 4 3 . 1 . . . . Communications Jammed . | . . . . . . . . . . . Distress Signals . | . . . . . . . . . . . Times Spotted 306 | . 39 2 45 32 8 70 11 6 84 9 Peak Tracking Total 6 | . 5 2 4 4 3 4 6 4 5 3 Tactical Retreats 19 | . 2 . 1 4 . 2 . . 10 . Traps | -11 -10 -10 -9 -9 -9 -7 -7 -7 -7 -7 ------- Run | Yrd Mat Min Mat Sto Rec Fac Low Low Zio Dee Traps Triggered 11 | . . . 2 2 . 7 . . . . Indirectly . | . . . . . . . . . . . Trap Hack Attempts 13 | . . . . 13 . . . . . . Triggered . | . . . . . . . . . . . Disarmed . | . . . . . . . . . . . Reprogrammed 2 | . . . . 2 . . . . . . Reused 1 | . . . . 1 . . . . . . Traps Extracted . | . . . . . . . . . . . Installed . | . . . . . . . . . . . Triggered 1 | . . . . 1 . . . . . . Machines | -11 -10 -10 -9 -9 -9 -7 -7 -7 -7 -7 ---------- Run | Yrd Mat Min Mat Sto Rec Fac Low Low Zio Dee Machines Disabled 21 | . 1 . 3 3 . 2 . . 10 2 Max in Single Turn 1 | . 1 . 1 1 . 1 . . 1 1 Garrison Access 2 | . . . . . . 2 . . . . Machines Repaired . | . . . . . . . . . . . Machines Dismantled 3 | . . . . . . . . . 3 . Machines Sabotaged . | . . . . . . . . . . . Overloaded Fab Kills . | . . . . . . . . . . . Hacking | -11 -10 -10 -9 -9 -9 -7 -7 -7 -7 -7 --------- Run | Yrd Mat Min Mat Sto Rec Fac Low Low Zio Dee Machines Accessed 69 | . 10 . 9 13 16 19 1 1 . . Terminals 38 | . 7 . 4 10 6 11 . . . . Fabricators 2 | . . . . . . 2 . . . . Repair Stations 6 | . 1 . 2 2 . 1 . . . . Recycling Units 13 | . 2 . 2 1 8 . . . . . Scanalyzers 4 | . . . 1 . . 3 . . . . Garrison Access 2 | . . . . . . 2 . . . . Total Hacks 222 | . 39 . 23 38 68 52 1 1 . . Successful 139 | . 22 . 15 24 53 23 1 1 . . Failed 82 | . 16 . 8 14 15 29 . . . . Catastrophic 11 | . 1 . . 1 4 5 . . . . Database Lockouts 1 | . 1 . . . . . . . . . Manual 67 | . 20 . 7 10 21 8 . . 1 . Terminals 104 | . 25 . 10 25 13 31 . . . . Fabricators 4 | . . . . . . 4 . . . . Repair Stations 29 | . 9 . 6 12 . 2 . . . . Recycling Units 37 | . 5 . 2 1 29 . . . . . Scanalyzers 16 | . . . 5 . . 11 . . . . Garrison Access 4 | . . . . . . 4 . . . . Terminal Hacks 63 | . 4 . 3 11 30 13 1 1 . . Record 24 | . . . . . 24 . . . . . Part Schematic 5 | . . . . 1 3 1 . . . . Robot Schematic 1 | . 1 . . . . . . . . . Prototype ID Bank 6 | . 1 . 2 1 1 1 . . . . Open Door 5 | . . . . 3 . . 1 1 . . Open DSF 1 | . . . . . . 1 . . . . Branch Access Points 1 | . . . . . . 1 . . . . Emergency Access Points 1 | . . . . . . 1 . . . . Machine Index 1 | . . . . . . 1 . . . . Terminal Index 1 | . 1 . . . . . . . . . Alert Level 2 | . . . . 1 . 1 . . . . Unreport Threat 4 | . . . . 2 . 2 . . . . Locate Traps 5 | . 1 . 1 1 . 2 . . . . Hauler Manifests 2 | . . . . 1 . 1 . . . . Registered Components 1 | . . . . 1 . . . . . . Zone Layout 1 | . . . . . . 1 . . . . Release Object 2 | . . . . . 2 . . . . . Fabricator Hacks 2 | . . . . . . 2 . . . . Network Status 1 | . . . . . . 1 . . . . Load Schematic 1 | . . . . . . 1 . . . . Repair Station Hacks 24 | . 8 . 5 9 . 2 . . . . Scan Component 13 | . 4 . 3 5 . 1 . . . . Repair 11 | . 4 . 2 4 . 1 . . . . Recycling Unit Hacks 8 | . 1 . . . 7 . . . . . Retrieve Components 8 | . 1 . . . 7 . . . . . Scanalyzer 8 | . . . 4 . . 4 . . . . Insert Component 4 | . . . 2 . . 2 . . . . Analyze 4 | . . . 2 . . 2 . . . . Garrison Access Hacks 2 | . . . . . . 2 . . . . Seal Access 2 | . . . . . . 2 . . . . Unauthorized Hacks 32 | . 9 . 3 4 16 . . . . . Terminals 11 | . 7 . 1 3 . . . . . . Assimilate 1 | . . . . 1 . . . . . . Botnet 2 | . . . . 2 . . . . . . Operators 1 | . 1 . . . . . . . . . Skim 7 | . 6 . 1 . . . . . . . Fabricators . | . . . . . . . . . . . Repair Stations . | . . . . . . . . . . . Recycling Units 21 | . 2 . 2 1 16 . . . . . Reject 10 | . . . 1 1 8 . . . . . Mask 2 | . . . 1 . 1 . . . . . Tunnel 9 | . 2 . . . 7 . . . . . Scanalyzers . | . . . . . . . . . . . Garrison Access . | . . . . . . . . . . . Data Cores Recovered 2 | . . . . . . 2 . . . . Used 1 | . . . . . . 1 . . . . Hacking Detections 52 | . 8 . 6 10 12 16 . . . . Full Trace Events 3 | . . . . . 1 2 . . . . Feedback Events 1 | . . . . . . 1 . . . . Corruption 1 | . . . . . . 1 . . . . Feedback Blocked . | . . . . . . . . . . . Robot Schematics Acquired 4 | . 1 . . . . . . . 3 . Robots Built . | . . . . . . . . . . . Authchips . | . . . . . . . . . . . Time . | . . . . . . . . . . . Total Robot Build Rating . | . . . . . . . . . . . Part Schematics Acquired 23 | . . . 2 1 3 3 . . 14 . Parts Built . | . . . . . . . . . . . Authchips . | . . . . . . . . . . . Time . | . . . . . . . . . . . Total Part Build Rating . | . . . . . . . . . . . Parts Repaired 11 | . 4 . 2 4 . 1 . . . . Time 381 | . 122 . 68 147 . 44 . . . . Parts Recycled . | . . . . . . . . . . . Recycled Matter . | . . . . . . . . . . . Retrieved Matter . | . . . . . . . . . . . Retrieved Components 38 | . 9 . . . 29 . . . . . Parts Scanalyzed 4 | . . . 2 . . 2 . . . . Part Schematics Acquired 4 | . . . 2 . . 2 . . . . Parts Damaged . | . . . . . . . . . . . Bothacking | -11 -10 -10 -9 -9 -9 -7 -7 -7 -7 -7 ------------ Run | Yrd Mat Min Mat Sto Rec Fac Low Low Zio Dee Used RIF Installer . | . . . . . . . . . . . Robots Hacked 1 | . . . . 1 . . . . . . Non-combat . | . . . . . . . . . . . Combat 1 | . . . . 1 . . . . . . Robot Hacks Applied 2 | . . . . 2 . . . . . . parse_system 2 | . . . . 2 . . . . . . Relay Couplers Released 3 | . . . . . . 3 . . . . Programmers 3 | . . . . . . 3 . . . . Fabnet Peak Effective % . | . . . . . . . . . . . Robots Rewired 10 | . . . . . 8 . 2 . . . Allies Hacked 1 | . . . . . . 1 . . . . Hacks Repelled . | . . . . . . . . . . . Allies | -11 -10 -10 -9 -9 -9 -7 -7 -7 -7 -7 -------- Run | Yrd Mat Min Mat Sto Rec Fac Low Low Zio Dee Total Allies 25 | . . 2 . 10 8 . 2 . 3 . Largest Group 10 | . . 2 2 10 10 8 2 . 3 3 Highest-Rated Group 291 | . . 46 46 88 93 92 40 . 291 291 Highest-Rated Ally 99 | . . 31 31 16 21 21 20 . 99 99 Total Orders 19 | . . . . 1 12 6 . . . . STAY 4 | . . . . . 3 1 . . . . FOLLOW 5 | . . . . . 3 2 . . . . DROP 2 | . . . . . . 2 . . . . PICKUP 3 | . . . . . 3 . . . . . COLLECT 4 | . . . . . 3 1 . . . . EXPLORE 1 | . . . . 1 . . . . . . Ally Attacks 131 | . . . 16 . 28 31 4 . 1 51 Total Damage 2794 | . . . 210 . 237 517 108 . 43 1679 Kills 25 | . . . 3 . 2 7 . . 1 12 Allies Corrupted . | . . . . . . . . . . . Allies Melted 2 | . . . . . 2 . . . . . Intel | -11 -10 -10 -9 -9 -9 -7 -7 -7 -7 -7 ------- Run | Yrd Mat Min Mat Sto Rec Fac Low Low Zio Dee Active Infowar (turns) 4965 | 90 139 . . . . . 2781 1823 132 . Terrain 2 | . . . . . . . . . 2 . Structural 4734 | . . . . . . . 2781 1823 130 . Seismic 229 | 90 139 . . . . . . . . . Robot Analysis Total . | . . . . . . . . . . . Derelict Logs Recovered 6 | . . 2 . . . . 2 1 1 . Drone Launches 1 | . . . . 1 . . . . . . Drone Recoveries . | . . . . . . . . . . . Exploration | -11 -10 -10 -9 -9 -9 -7 -7 -7 -7 -7 ------------- Run | Yrd Mat Min Mat Sto Rec Fac Low Low Zio Dee Turns Passed 47995 | 237 4711 1945 3919 4098 8385 4332 2883 1825 12612 3048 Spaces Moved 16778 | 121 1053 475 995 1013 4650 2269 1019 705 3353 1125 Core 207 | 6 . . . . 201 . . . . . Treads 11433 | 115 1053 475 995 1013 1124 456 1019 705 3353 1125 Legs . | . . . . . . . . . . . Wheels 5138 | . . . . . 3325 1813 . . . . Hover . | . . . . . . . . . . . Flight . | . . . . . . . . . . . Fastest Speed 50 | 50 160 400 320 320 90 90 250 250 170 250 Average Speed 233 | 154 383 400 330 320 154 146 250 250 261 254 Slowest Speed 720 | 160 720 400 400 320 350 250 250 250 330 330 Overloaded Moves . | . . . . . . . . . . . Propulsion Burnouts . | . . . . . . . . . . . Robots Hopped . | . . . . . . . . . . . Potential Cave-ins . | . . . . . . . . . . . Cave-ins Triggered 1 | . . . . . . . . . . 1 Exploration Rate (%) 76 | 6 99 94 73 96 99 48 98 66 91 75 Regions Visited 10 Branch Regions 7 Pre-discovered Areas 12 | . 2 2 . . 7 . . 1 . . Known Exits Taken 8 | . 1 1 1 1 . 1 1 1 1 . Unknown Exits Taken 2 | 1 . . . . 1 . . . . . Scrap Searched 15 | . . 1 . . . . 8 2 4 . Spaces Dug 115 | . 3 . 7 3 . . 7 26 65 4 Terrain Destroyed 419 | . 14 . 8 3 2 11 11 48 252 70 Melee 9 | . . . . 2 . . 6 . 1 . Projectile 278 | . 3 . 8 1 2 6 2 5 244 7 AOE 131 | . 11 . . . . 5 3 43 6 63 Terrain Rammed . | . . . . . . . . . . . Walls Destroyed . | . . . . . . . . . . . Machines Disabled . | . . . . . . . . . . . Actions | -11 -10 -10 -9 -9 -9 -7 -7 -7 -7 -7 --------- Run | Yrd Mat Min Mat Sto Rec Fac Low Low Zio Dee Total 23132 | 147 1586 494 1433 1679 5762 3039 1322 743 5648 1279 Wait 3374 | . 356 1 169 477 887 520 225 2 662 75 Move 16768 | 120 1052 474 994 1012 4649 2268 1018 704 3352 1125 Hop . | . . . . . . . . . . . Pick Up 254 | 8 54 2 50 19 32 45 7 2 24 11 Fast Attach 60 | 7 3 . 15 3 4 8 . . 11 9 Attach 32 | . 2 . 4 1 3 4 4 3 7 4 Detach 5 | . . . . . . . . 2 3 . Swap 123 | 1 13 . 31 35 7 9 3 1 12 11 Drop 286 | . 27 2 76 31 61 30 6 2 34 17 Fire 2048 | 11 74 12 90 73 39 155 26 27 1515 26 Melee 16 | . . . . 8 1 . 6 . 1 . Ram 4 | . . . . . 4 . . . . . Kick . | . . . . . . . . . . . Crush 18 | . 5 3 4 3 3 . . . . . Escape Stasis 4 | . . . . 4 . . . . . . Rewire 100 | . . . . . 72 . 27 . . 1 Trap 13 | . . . . 13 . . . . . . Miscellaneous 27 | . . . . . . . . . 27 . Route ------- -11/Scrapyard -10/Materials (discovered 6 exits: *Mat x3 / *Min x2 / *Sub) -10/Mines (discovered 3 exits: *Mat x2 / *Sub) -9/Materials (discovered 6 exits: *Mat x3 / *Min / *Sto x2) -9/Storage (discovered 2 exits: *Mat / *Rec) -9/Recycling -7/Factory (discovered 5 exits: *Fac x3 / *Low x2) -7/Lower Caves -7/Lower Caves (discovered 2 exits: *Fac / *Zio) -7/Zion (discovered 2 exits: *Dee / [*Pro]) -7/Deep Caves (discovered 1 exit: [*Pro]) History --------- Turn | Location | Event 8 | -11/Scrapyard | Discovered new exit (range 16) 238 | -11/Scrapyard | Entered Materials 317 | -10/Materials | Build established: Mutant 471 | -10/Materials | Discovered new exit (range 16) 527 | -10/Materials | Discovered new exit (range 11) 590 | -10/Materials | Central database locked down 678 | -10/Materials | Build established: Hauler-Mutant 738 | -10/Materials | Derelicts attacked the area 1433 | -10/Materials | Discovered new exit (range 10) 1857 | -10/Materials | Discovered new exit (range 12) 2489 | -10/Materials | Discovered new exit (range 16) 2572 | -10/Materials | Identified exit to Materials 2699 | -10/Materials | Learned location of 1 exit from Storage 2750 | -10/Materials | Loaded intel: 14 trap records 2821 | -10/Materials | Identified exit to Mines 2869 | -10/Materials | Learned 4 Materials zone layouts 2905 | -10/Materials | Learned 2 Mines zone layouts 2949 | -10/Materials | Learned 8 Materials zone layouts 3002 | -10/Materials | Learned 2 Mines zone layouts 3750 | -10/Materials | Repaired Lgt. Treads 3795 | -10/Materials | Repaired Broken Sub. Machine Gun 3921 | -10/Materials | Repaired Grenade Launcher 3948 | -10/Materials | Repaired Lgt. Treads 4361 | -10/Materials | Core integrity fell below 50% 4949 | -10/Materials | Entered Mines 5041 | -10/Mines | Discovered exit to Materials (range 10) 5205 | -10/Mines | Learned location of Zion (-7) 6145 | -10/Mines | Identified exit to Subcaves 6206 | -10/Mines | Learned location of Storage (-9) 6213 | -10/Mines | Discovered exit to Materials (range 6) 6894 | -10/Mines | Entered Materials 6894 | -9/Materials | Accompanied by 2 allies 6894 | -9/Materials | Evolved 2 slots: Weapon x2 6895 | -9/Materials | Identified exit to Storage 6896 | -9/Materials | Identified exit to Mines 6896 | -9/Materials | Identified exit to Materials 6899 | -9/Materials | Led the pair of lost Derelicts to an unsafe place 7201 | -9/Materials | Build established: Hauler-Gunner 7688 | -9/Materials | Build established: Scavenger-Gunner 7799 | -9/Materials | Discovered exit to Materials (range 16) 7958 | -9/Materials | Repaired Broken Lgt. Treads 8589 | -9/Materials | Repaired Hvy. Assault Rifle 9135 | -9/Materials | Discovered exit to Storage (range 15) 9600 | -9/Materials | Build established: Scavenger-Tank 10813 | -9/Materials | Entered Storage 10814 | -9/Storage | Identified exit to Recycling 11167 | -9/Storage | Repaired Imp. Assault Rifle 11353 | -9/Storage | Repaired Hvy. Assault Rifle 11387 | -9/Storage | Repaired Rocket Launcher 11420 | -9/Storage | Repaired Hvy. Assault Rifle 13061 | -9/Storage | Build established: Tank 13329 | -9/Storage | Core integrity fell below 50% 13767 | -9/Storage | Discovered exit to Materials (range 16) 14256 | -9/Storage | Met 01-MTF 14405 | -9/Storage | Assisted by bots powering up and referring to "LRC-V3" 14737 | -9/Storage | Build established: Commander-Tank 14911 | -9/Storage | Entered Recycling 14911 | -9/Recycling | Accompanied by 11 allies (01-MTF) 15227 | -9/Recycling | Discovered new exit (range 5) 17480 | -9/Recycling | Scanned before Scraplab entrance 17508 | -9/Recycling | Angered Scraplab inhabitants 17541 | -9/Recycling | Destroyed KN-7UR 17549 | -9/Recycling | Lost 11 allies 17563 | -9/Recycling | Core integrity fell below 20% 17595 | -9/Recycling | Found Prototype Energy Gun 17596 | -9/Recycling | Identified KN-7UR's Autopenetrator 17898 | -9/Recycling | Build established: Tank 18545 | -9/Recycling | Found Prototype Device 18545 | -9/Recycling | Identified Scrap Engine 19048 | -9/Recycling | Build established: Mutant 19637 | -9/Recycling | Build established: Construct 22260 | -9/Recycling | Build established: Commander-Construct 23296 | -9/Recycling | Entered Factory 23296 | -7/Factory | Accompanied by 8 allies 23296 | -7/Factory | Evolved 4 slots: Utility x4 23585 | -7/Factory | Identified exit to Lower Caves 23641 | -7/Factory | Discovered new exit (range 5) 23649 | -7/Factory | Identified exit to Factory 24343 | -7/Factory | Build established: Construct 25275 | -7/Factory | Repaired Med. Insulated Plating 25283 | -7/Factory | Discovered exit to Factory (range 12) 25991 | -7/Factory | Garrison activated, responded to threat 26623 | -7/Factory | Discovered exit to Factory (range 16) 27628 | -7/Factory | Entered Lower Caves 28617 | -7/Lower Caves | Attacked by a faux Warlord 29263 | -7/Lower Caves | Identified exit to Lower Caves 29513 | -7/Lower Caves | Learned location of 1 exit from Lower Caves 29574 | -7/Lower Caves | Found Prototype Device 30511 | -7/Lower Caves | Entered another Lower Caves area 30512 | -7/Lower Caves | Identified exit to Zion 30520 | -7/Lower Caves | Encountered a Warlord checkpoint 30791 | -7/Lower Caves | Discovered exit to Factory (range 15) 31013 | -7/Lower Caves | Learned location of Extension (-5) 31167 | -7/Lower Caves | Attracted the attention of an 0b10 checkpoint 32321 | -7/Lower Caves | Build established: Mutant 32336 | -7/Lower Caves | Entered Zion 32498 | -7/Zion | Found CR-A16's Pointy Stick 32557 | -7/Zion | Discovered new exit (range 15) 32575 | -7/Zion | Given A8's code to call for help 32852 | -7/Zion | Attacked by Zionites 32964 | -7/Zion | Spotted S9-LFE(B) 32981 | -7/Zion | Spotted VH-KKR(B) 33012 | -7/Zion | Destroyed S9-LFE(B) 33019 | -7/Zion | Destroyed VH-KKR(B) 33222 | -7/Zion | Build established: Gunner 34733 | -7/Zion | Identified exit to Deep Caves 35223 | -7/Zion | Core integrity fell below 50% 39741 | -7/Zion | Found Prototype Special Weapon 39741 | -7/Zion | Identified RU-N14's Throwing Claymores 39746 | -7/Zion | Found RU-N14's Throwing Claymores 39753 | -7/Zion | Found RU-N14's Throwing Claymores 39757 | -7/Zion | Found RU-N14's Throwing Claymores 42185 | -7/Zion | Saw the warning signs outside the Deep Caves entrance 42611 | -7/Zion | Identified Heart of Steel 44090 | -7/Zion | Heart of Steel transformed into Warbot 44902 | -7/Zion | Enhanced Grunt warped into view, answering call for help 44903 | -7/Zion | Enhanced Grunt warped into view, answering call for help 44948 | -7/Zion | Entered Deep Caves 44948 | -7/Deep Caves | Accompanied by 3 allies (Warbot) 45485 | -7/Deep Caves | Attacked by Z-Imprinter 45490 | -7/Deep Caves | Destroyed Z-Imprinter 45531 | -7/Deep Caves | Found Prototype Protection 45531 | -7/Deep Caves | Identified Zio. Weapon Casing 45632 | -7/Deep Caves | Z-Facility disabled 45849 | -7/Deep Caves | Build established: Scavenger-Gunner 46201 | -7/Deep Caves | Found Zio. Weapon Casing 46227 | -7/Deep Caves | Found Zio. Weapon Casing 46509 | -7/Deep Caves | Build established: Scavenger-Tank 47383 | -7/Deep Caves | Discovered new exit (range 7) 47710 | -7/Deep Caves | Spotted AG-85357 47736 | -7/Deep Caves | Core integrity fell below 20% 47740 | -7/Deep Caves | Destroyed AG-85357 47748 | -7/Deep Caves | Found GOLEM Unit 47769 | -7/Deep Caves | Found Prototype Device 47769 | -7/Deep Caves | Identified Exp. Thermal Shield 47922 | -7/Deep Caves | Spotted AG-38514 47962 | -7/Deep Caves | Destroyed AG-38514 47997 | -7/Deep Caves | Crushed by falling debris 47997 | -7/Deep Caves | Smashed by cave-in Last Messages --------------- 47769_ Identified Exp. Thermal Shield. 47770_ Dropped Exp. Thermal Shield. 47774_ Acquired Zio. Weapon Casing. 47779_ Acquired 20 matter. 47787_ Arm. Scrap Engine consumes Prototype Leg. 47793_ Dropped Zio. Light Carapace. 47794_ Acquired Antimatter Reactor. 47861_ Attempting to rewire WV-L8G(M). 47861_ WV-L8G(M) is broken beyond repair. 47924_ AG-38514: "DSI9AT1D G8OHIBQ29FWG 26R186 QD12WHW8W33 TDK1 81FTS" 47927_ Zio. Light Carapace destroyed. 47960_ Zio. Weapon Casing destroyed. 47962_ AG-38514 system terminally corrupted. 47963_ Acquired 10 matter. 47997_ AG-81687 system terminally corrupted. 47997_ The unstable cave ceiling collapses. 47997_ Crushed by falling debris. 47997_ Hvy. EM Riot Construct/C destroyed. 47997_ Hvy. EM Riot Construct/C core remains intact and functional. 47997_ System corrupted by crushing effect (+5). Map ----- +----------------------------------------------------+ | | | | | | | | | | | | | | | ?????????????????????????????????????????????????? | | ?????????????????????????????????????????????????? | | ?????????????????????????????????????????????????? | | ?????????????? ???????????????????????????######## | | ???????????? ?????????????????????####?# | | ??????????? #??????????????????## ### #??### | | ??????????? # ????????????????## #???# | | ?????????? #??###?????????## #???## | | ?????????? # ?# #????????## ########## | | ?????????? ?# #????????# ##?????# | | ?????????"" ?# #????????# ##??????# | | ????????? ## #????????# ##???##?## | | ????????" # #####????# #?### #?# | | ????????" ?????# ### #?# | | ????????# #??##### ## #?# | | ?????????" ! #???# # #?## | | ?????????" ###???# #??#### | | ?????????" ##??## ##?????# | | ?????????" ###@#???## ##???#### | | ?????????" ??#%#????### #????# | | ????????# ### ####???## ##??## # | | ????????# # #????### #### ## | | ????????# / ############ ## ##? | | ????????# #### #?? | | ????????# ## ##? | | ????????# #### ##### ## | | ????????? / M##?# ###?## # | | ????????? #?# ##?# | | ????????? M #?# #?# #### | | ?????????? **= #?## #?# #??## # | | ?????????? ### #?# #???## ## | | ??????????? * ## ### ##?### ## | | ??????????? = ## ### | | ?????????? ## | | ?????????? ### ### | | ?????????" = ## ##?? | | ????????? == = ### ##??? | | ????????" = #?## ##???? | | ????????" #### #????? | | ????????" ##???? | | ????????""" = = #???? | | ????????" % #???? | | ?????????" ]!!= ### #???? | +----------------------------------------------------+ Best States ------------- Heat Dissipation 56 Energy Generation 25 Energy Capacity 474 Matter Stores 480 Matter Capacity 500 Sight Range 16 Terrain Scan Density 10 Armor Coverage 800 Resistance: KI 30 Resistance: TH 30 Resistance: EM 20 Core Shielding 20 Weapon Shielding 100 Evasion (%) 42 Targeting Accuracy 6 Core Analysis 6 Recoil Reduction 2 Offensive Hacking 10 Item Schematics ----------------- Arm. Wheel | -9/Materials | Scanalyzed Lgt. Assault Rifle | -9/Materials | Scanalyzed Imp. Weapon Shielding | -9/Storage | Hacked Utility Shielding | -9/Recycling | Hacked Power Maul | -9/Recycling | Hacked Imp. Shield Generator | -9/Recycling | Hacked Hvy. Antimatter Reactor | -7/Factory | Scanalyzed Recoil Stabilizer | -7/Factory | Hacked Mak. Microdissipator Network | -7/Factory | Scanalyzed Thermal Shield | -7/Zion | Archive Core Analyzer | -7/Zion | Archive Arm. Leg | -7/Zion | Archive Flak Gun | -7/Zion | Archive Imp. Kinecellerator | -7/Zion | Archive Powered Hammer | -7/Zion | Archive Imp. System Shield | -7/Zion | Archive Matter Filter | -7/Zion | Archive Hvy. Shock Bomb Launcher | -7/Zion | Archive Imp. Deuterium Engine | -7/Zion | Archive Energy Well | -7/Zion | Archive Imp. Melee Analysis Suite | -7/Zion | Archive Nuclear Pulse Thruster | -7/Zion | Archive Hyp. Gauss Rifle | -7/Zion | Archive Robot Schematics ------------------ M-13 Machinist | -10/Materials | Hacked A-02 Transporter | -7/Zion | Archive L-31 Rogue | -7/Zion | Archive L-41 Fighter | -7/Zion | Archive Fabricated ------------ Nothing Repaired ---------- Lgt. Treads | 23% | -10/Materials Sub. Machine Gun | 81% | -10/Materials | Broken Grenade Launcher | 46% | -10/Materials Lgt. Treads | 57% | -10/Materials Lgt. Treads | 32% | -9/Materials | Broken Hvy. Assault Rifle | 23% | -9/Materials Imp. Assault Rifle | 5% | -9/Storage Hvy. Assault Rifle | 35% | -9/Storage Rocket Launcher | 47% | -9/Storage Hvy. Assault Rifle | 46% | -9/Storage Med. Insulated Plating | 14% | -7/Factory Alien Tech Used ----------------- None Achievements -------------- None Challenges ------------ None Game ------ Seed FocalRecoilObliterator Manual? 0 Play Time 04:09:50 Cumulative 865.7 hours Start 2025.06.05 @ 21:03:53 End 2025.06.06 @ 02:08:27 Sessions 1 Manual Loads 0 Difficulty Rogue Special Mode None Game No. 473 Rogue 473 Adventurer 0 Explorer 0 Win Type - Total 22 Types 10/3/3/0/1/1/2/2/0/0 Lore% 80 Gallery% 85 Achievement% 83 Wizard Run 0 Options --------- Layout 0 ASCII 0 Keyboard 0 Movement Numpad Keybinds 0 Fullscreen 2 Font 24/Smallcaps Map View 76x50 Zoom Use 0% Tactical HUD 1 Map Filters NONE Filters NONE Steam X RUN: e7246591-4dae-4314-b71f-4b52a777ac94